Workbook

Sheet MENU
C2: CERTIFICADO DE INGRESOS Y RETENCIONES PARA PERSONAS NATURALES EMPLEADOS (Año gravable 2022) | N2: F -220
F4: Derechos reservados www.consultorcontable.com | L4: Actualizado año 2022. Wiliam Dussán Salazar
B5: Instrucciones:
B7: 1- Esta plantilla está diseñada para emitir certificados de ingresos y retenciones Formato 220 por el año gravable 2022 por parte del empledor
B8: 2- Diligecia los datos del empleador en la parte inferior de este anexo
B9: 3- Ingrese al botón "datos del empleado" de acuerdo al boton que aparece en este menú en la parte superior.
B10: Digite los datos de los empleados, partiendo del numero de cédula y demas datos de ingresos y descuentos
B11: 4- Cuando ya se tenga diligenciada toda la información del empleado o de todos los empleados, debe ingresar al boton "Certificado"
B12: En el cual deberá digitar el número de cédula del empleado al que se le quiera generar el certificado. Luego imprimir o guardar como PDF
B15: DATOS DEL EMPLEADOR (Diligencia los datos del empleador que va a emitir el certificado
B17: NIT | C17: 900412051 | D17: DV | E17: 3
B19: RAZON SOCIAL | C19: COMERCIALIZADORA DE PRUEBA SA | I19: LUGAR DONDE SE PRACTICÓ LA RETENCIÓN | N19: Bogotá
B20: NOMBRE1 | I20: CODIGO DEPARTMENTO | N20: 11
B21: NOMBRE2 | I21: CODIGO MUNICIPIO | N21: 001
B22: APELLIDO1 | I22: FECHA DE EMISIÓN DEL CERTIFICADO | N22: 2023-02-15
B23: APELLIDO2
B24: PAGADOR
K26: Basado en Resolución 0042 del 15 marzo 2023 | N26: Actualizado 27-03-2023

Sheet Datos empleados
F1: DATOS DE LOS EMPLEADOS | K1: Versión para generar hasta 150 empleados
C2: Diligencie la información de los terceros a los cuales le va a emitir el certificado, puede adicionar primero todos los datos de todos los empleados para luego si proceder a generar los certificados. | Y2: 14 | AF2: Dependiente
A3: Número de indentificacion | B3: Cargo (Información Opcional) | C3: Primer apellido | D3: Segundo apellido | E3: Primer nombre | F3: Segundo nombre | G3: Fecha inicial | H3: Fecha final | I3: 36. Salarios o emolumentos eclesiasticos | J3: 37. Pagos realizados con bonos electrónicos o de papel de servicio, cheques, tarjetas, vales, etc: | K3: 38. Honorarios | L3: 39. Servicios | M3: 40. Comisiones | N3: 41. Prestaciones sociales (No incluya cesantias de la casilla 46) | O3: 42. Víaticos | P3: 43. Gastos de representación | Q3: 44. Compensación por el trabajo asociado cooperativo | R3: 45. Otros pagos | S3: 46. Cesantías e intereses de cesantías efectivamente pagadas al empleado | T3: 47. Cesantias consignadas al fondo de cesantias | U3: 48. Pensiones de jubilación, vejez o invalidez | V3: 50. Aportes obligatorios por salud a cargo del trabajador | W3: 51. Aportes obligatorios a fondos de pensiones y solidaridad pensional a cargo del trabajador | X3: 52. Cotizaciones voluntarias al régime de ahorro individual con solidaridad - RAIS | Y3: 53. Aportes voluntarios a fondos de pensiones | Z3: 54. Aportes a cuentas AFC | AA3: 55. Retefuente descontada por rentas de trabajo o pensiones | AB3: NO APLICA | AF3: Tipo de documento | AG3: N. de documento | AH3: Apellidos y nombres | AI3: Parentesco
A4: Totales | I4: =SUM(I5:I5000) -> 1000 | J4: =SUM(J5:J5000) -> 2000 | K4: =SUM(K5:K5000) -> 3000 | L4: 4000 | M4: 5000 | N4: 6000 | O4: 7000 | P4: 8000 | Q4: 9000 | R4: 10000 | S4: =SUM(S5:S5000) -> 11000 | T4: =SUM(T5:T5000) -> 12000 | U4: 13000 | V4: 100 | W4: 200 | X4: 300 | Y4: 400 | Z4: =SUM(Z5:Z5000) -> 500 | AA4: 600 | AB4: 0
A5: 7700077 | B5: EJEMPLO | C5: GOMEZ | D5: GIRALDO | E5: MARIA | F5: ANGELICA | G5: 2022-01-01 | H5: 2022-12-31 | I5: 1000 | J5: 2000 | K5: 3000 | L5: 4000 | M5: 5000 | N5: 6000 | O5: 7000 | P5: 8000 | Q5: 9000 | R5: 10000 | S5: 11000 | T5: 12000 | U5: 13000 | V5: 100 | W5: 200 | X5: 300 | Y5: 400 | Z5: 500 | AA5: 600 | AC5: =+IF((I5>0),1,0) -> 1 | AF5: TI | AG5: 2625455555 | AH5: LINA MARIA SOLANO | AI5: HIJA
AC6: 0
AC7: 0
AC8: 0
AC9: 0
AC10: 0
AC11: 0
AC12: 0
AC13: 0
AC14: 0
AC15: 0
AC16: 0
AC17: 0
AC18: 0
AC19: 0
AC20: 0
AC21: 0
AC22: 0
AC23: 0
AC24: 0
AC25: 0
AC26: 0
AC27: 0
AC28: 0
AC29: 0
AC30: 0
AC31: 0
AC32: 0
AC33: 0
AC34: 0
AC35: 0
AC36: 0
AC37: 0
AC38: 0
AC39: 0
AC40: 0
AC41: 0
AC42: 0
AC43: 0
AC44: 0
AC45: 0
AC46: 0
AC47: 0
AC48: 0
AC49: 0
AC50: 0
AC51: 0
AC52: 0
AC53: 0
AC54: 0
AC55: 0
AC56: 0
AC57: 0
AC58: 0
AC59: 0
AC60: 0
AC61: 0
AC62: 0
AC63: 0
AC64: 0
AC65: 0
AC66: 0
AC67: 0
AC68: 0
AC69: =+IF((I69>0),1,0) -> 0
AC70: 0
AC71: 0
AC72: 0
AC73: 0
AC74: 0
AC75: 0
AC76: 0
AC77: 0
AC78: 0
AC79: 0
AC80: 0
AC81: 0
AC82: 0
AC83: 0
AC84: 0
AC85: 0
AC86: 0
AC87: 0
AC88: 0
AC89: 0
AC90: 0
AC91: 0
AC92: 0
AC93: 0
AC94: 0
AC95: 0
AC96: 0
AC97: 0
AC98: 0
AC99: 0
AC100: 0
AC101: 0
AC102: 0
AC103: 0
AC104: 0
AC105: 0
AC106: 0
AC107: 0
AC108: 0
AC109: 0
AC110: 0
AC111: 0
AC112: 0
AC113: 0
AC114: 0
AC115: 0
AC116: 0
AC117: 0
AC118: 0
AC119: 0
AC120: 0
AC121: 0
AC122: 0
AC123: 0
AC124: 0
AC125: 0
AC126: 0
AC127: 0
AC128: 0
AC129: 0
AC130: 0
AC131: 0
AC132: 0
AC133: =+IF((I133>0),1,0) -> 0
AC134: 0
AC135: 0
AC136: 0
AC137: 0
AC138: 0
AC139: 0
AC140: 0
AC141: 0
AC142: 0
AC143: 0
AC144: 0
AC145: 0
AC146: 0
AC147: 0
AC148: 0
AC149: 0
AC150: 0
AC151: 0
AC152: 0
AC153: 0
AC154: 0
AC155: 0
AC156: 0
AC157: 0
AC158: 0
AC159: 0
AC160: 0
AC161: 0
AC162: 0
AC163: 0
AC164: 0
AC165: 0
AC166: 0
AC167: 0
AC168: 0
AC169: 0
AC170: 0
AC171: 0
AC172: 0
AC173: 0
AC174: 0
AC175: 0
AC176: 0
AC177: 0
AC178: 0
AC179: 0
AC180: 0
AC181: 0
AC182: 0
AC183: 0
AC184: 0
AC185: 0
AC186: 0
AC187: 0
AC188: 0
AC189: 0
AC190: 0
AC191: 0
AC192: 0
AC193: 0
AC194: 0
AC195: 0
AC196: 0
AC197: =+IF((I197>0),1,0) -> 0
AC198: 0
AC199: 0
AC200: 0
... 2050 more rows

Sheet Cert ing y ret
J1: Certificado de Ingresos y Retenciones por Rentas de Trabajo y de Pensiones Año gravable 2022
AM2: La información de este certificado se alimenta en el anexo de datos empleados, diligencie inicialmente los datos de todos sus empleados, o del que requiera generar el certificado.
A5: Antes de diligenciar este formulario lea cuidadosamente las instrucciones | V5: 4. Número de formulario | AC5: 7700077 | AM5: <<<Digite el numero de cédula del empleado que quiera generar el certificado
AM7: Luego lo puede imprimir o guardar en PDF según la necesidad.
A8: Retenedor | B8: 5. Número de Identificación Tributaria (NIT): | N8: 6. DV. | Q8: 7. Primer Apellido | W8: 8. Segundo Apellido | AC8: 9. Primer Nombre | AH8: 10. Otros Nombres | AP8: 11. Registro civil de nacimiento.
AP9: 12. Tarjeta de identidad.
D10: =IF(MENU!C17="","",MENU!C17) -> 900412051 | O10: - | P10: =IF(MENU!E17="","",MENU!E17) -> 3 | Q10: =IF(MENU!C22="","",MENU!C22) ->  | W10: =IF(MENU!C23="","",MENU!C23) ->  | AC10: =IF(MENU!C20="","",MENU!C20) ->  | AH10: =IF(MENU!C21="","",MENU!C21) ->  | AP10: 13. Cédula de ciudadanía.
B11: 11. Razón Social | AP11: 21. Tarjeta de extranjería.
B12: =IF(MENU!C19="","",MENU!C19) -> COMERCIALIZADORA DE PRUEBA SA | AP12: 22. Cédula de extranjería.
A13: Empleado | B13: 24. Cód. Tipo | G13: 25. Número de documento de identificación | S13: 26. Primer apellido | X13: 27 Segundo apellido | AD13: 28. Primer Nombre | AI13: 29 Otros Nombres | AP13: 31. NIT.
B14: de documento | AP14: 41. Pasaporte.
C15: 13. Cédula de ciudadanía. | G15: =+AC5 -> 7700077 | S15: =+VLOOKUP((AC5),'Datos empleados'!A5:AB5000,3,0) -> GOMEZ | X15: =VLOOKUP((AC5),'Datos empleados'!A5:AB5000,4,0) -> GIRALDO | AD15: =+VLOOKUP((AC5),'Datos empleados'!A5:AB5000,5,0) -> MARIA | AI15: =VLOOKUP((AC5),'Datos empleados'!A5:AB5000,6,0) -> ANGELICA | AP15: 42. Tipo de documento extranjero.
A17: Periodo de la Certificación | Q17: 32. Fecha de Expedición | X17: 33. Lugar donde se practicó la retención | AH17: 34 Cód. Dpto. | AJ17: 35. Cód. Ciudad/ Municipio
B18: 30. de: | E18: =+VLOOKUP((AC5),'Datos empleados'!A5:AB5000,7,0) -> 2022-01-01 | J18: 31. A: | L18: =+VLOOKUP((AC5),'Datos empleados'!A5:AB5000,8,0) -> 2022-12-31 | R18: =+MENU!N22 -> 2023-02-15 | X18: =+MENU!N19 -> Bogotá | AI18: =+MENU!N20 -> 11 | AJ18: =+MENU!N21 -> 001 | AP18: Hijo (a)
AP19: Padres
A20: Concepto de los Ingresos | AB20: Valor | AP20: Esposa (o)
A21: Pagos por salarios o emolumentos eclesiásticos | AB21: 36 | AC21: =+VLOOKUP(($AC$5),'Datos empleados'!$A$5:$AB$5000,9,0) -> 1000 | AP21: Compañero (a)
A22: Pagos realizados con bonos electrónicos o de papel de servicio, cheques, tarjetas, vales, etc | AB22: 37 | AC22: =+VLOOKUP(($AC$5),'Datos empleados'!$A$5:$AB$5000,10,0) -> 2000
A23: Pagos por honorarios | AB23: =+AB22+1 -> 38 | AC23: =+VLOOKUP(($AC$5),'Datos empleados'!$A$5:$AB$5000,11,0) -> 3000
A24: Pagos por servicios | AB24: =+AB23+1 -> 39 | AC24: =+VLOOKUP(($AC$5),'Datos empleados'!$A$5:$AB$5000,12,0) -> 4000
A25: Pagos por comisiones | AB25: 40 | AC25: =+VLOOKUP(($AC$5),'Datos empleados'!$A$5:$AB$5000,13,0) -> 5000
A26: Pagos por prestaciones sociales | AB26: 41 | AC26: =+VLOOKUP(($AC$5),'Datos empleados'!$A$5:$AB$5000,14,0) -> 6000
A27: Pagos por viáticos | AB27: 42 | AC27: =+VLOOKUP(($AC$5),'Datos empleados'!$A$5:$AB$5000,15,0) -> 7000
A28: Pagos por gastos de representación | AB28: 43 | AC28: =+VLOOKUP(($AC$5),'Datos empleados'!$A$5:$AB$5000,16,0) -> 8000
A29: Pagos por compensaciones por el trabajo asociado cooperativo | AB29: 44 | AC29: =+VLOOKUP(($AC$5),'Datos empleados'!$A$5:$AB$5000,17,0) -> 9000
A30: Otros pagos | AB30: 45 | AC30: =+VLOOKUP(($AC$5),'Datos empleados'!$A$5:$AB$5000,18,0) -> 10000
A31: Cesantías e intereses de cesantías efectivamente pagadas al empleado | AB31: 46 | AC31: =+VLOOKUP(($AC$5),'Datos empleados'!$A$5:$AB$5000,19,0) -> 11000
A32: Cesantías consignadas al fondo de cesantias | AB32: 47 | AC32: =+VLOOKUP(($AC$5),'Datos empleados'!$A$5:$AB$5000,20,0) -> 12000
A33: Pensiones de jubilación, vejez o invalidez | AB33: 48 | AC33: =+VLOOKUP(($AC$5),'Datos empleados'!$A$5:$AB$5000,21,0) -> 13000
A34: Total de ingresos brutos (Sume casillas 36 a 48) | AB34: =+AB33+1 -> 49 | AC34: =SUM(AC21:AL33) -> 91000
A35: Concepto de los aportes | AB35: Valor
A36: Aportes obligatorios por salud a cargo del trabajador | AB36: 50 | AC36: =VLOOKUP(($AC$5),'Datos empleados'!$A$5:$AB$5000,22,0) -> 100
A37: Aportes obligatorios a fondos de pensiones y solidaridad pensional a cargo del trabajador | AB37: 51 | AC37: =VLOOKUP(($AC$5),'Datos empleados'!$A$5:$AB$5000,23,0) -> 200
A38: Cotizaciones voluntarias al régimen de ahorro individual con solidaridad - RAIS | AB38: 52 | AC38: =VLOOKUP(($AC$5),'Datos empleados'!$A$5:$AB$5000,24,0) -> 300
A39: Aportes voluntarios a fondos de pensiones | AB39: 53 | AC39: =VLOOKUP(($AC$5),'Datos empleados'!$A$5:$AB$5000,25,0) -> 400
A40: Aportes a cuentas AFC o AVC | AB40: 54 | AC40: =VLOOKUP(($AC$5),'Datos empleados'!$A$5:$AB$5000,26,0) -> 500
A41: Valor de la retención en la fuente por ingresos laborales y de pensiones | AB41: 55 | AC41: =VLOOKUP(($AC$5),'Datos empleados'!$A$5:$AB$5000,27,0) -> 600
A43: Nombre del pagador o agente retenedor
A44: =IF(MENU!C24="","",MENU!C24) -> 
A46: Datos a cargo del trabajador o pensionado | AM46: Desde el renglon 56 en adelante lo diligencia el empleado que no
A47: Concepto de otros ingresos | Y47: Valor recibido | AF47: Valor retenido | AM47: esté obligado a declarar. El empleador sólo diligencia la información hasta el renglon 55
A48: Arrendamientos | Y48: 56 | AF48: 63
A49: Honorarios, comisiones y servicios | Y49: 57 | AF49: 64
A50: Intereses y rendimientos financieros | Y50: 58 | AF50: 65
A51: Enajenación de activos fijos | Y51: 59 | AF51: 66
A52: Loterías, rifas, apuestas y similares | Y52: 60 | AF52: 67
A53: Otros | Y53: 61 | AF53: 68
A54: Totales: (Valor recibido: Sume casillas 56 a 61), (Valor retenido: Sume 63 a 68) | Y54: 62 | Z54: =SUM(Z48:AE53) -> 0 | AF54: 69 | AG54: =SUM(AG48:AL53) -> 0
A55: Total retenciones año gravable 2022 (Sume casillas 55 + 69) | AF55: 70 | AG55: =+AC41+AG54 -> 600
A56: Ítem | B56: 71. Identificación de los bienes poseídos | AF56: 72. Valor Patrimonial
A57: 1
A58: 2
A59: 3
A60: 4
A61: 5
A62: 6
A63: 7
A64: 8
A65: Deudas vigentes a 31 de Diciembre de 2022 | AF65: 73
A66: Identificación del dependiente económico de acuerdo al parágrafo 2 del artículo 387 del Estatuto Tributario
A67: 74. Tipo de documento | G67: 75. No. Documento | N67: 76. Apellidos y Nombres | AF67: 77. Parentesco
A68: =VLOOKUP(($AC$5),'Datos empleados'!$A$5:$AI$5000,32,0) -> TI | G68: =VLOOKUP(($AC$5),'Datos empleados'!$A$5:$AI$5000,33,0) -> 2625455555 | N68: =VLOOKUP(($AC$5),'Datos empleados'!$A$5:$AI$5000,34,0) -> LINA MARIA SOLANO | AF68: =VLOOKUP(($AC$5),'Datos empleados'!$A$5:$AI$5000,35,0) -> HIJA
A69: 2
A70: 3
A71: 4
AB72: Firma del trabajador o pensionado
A80: NOTA: este certificado sustituye para todos los efectos legales la declaración de Renta y Complementario para el trabajador o pensionado que lo firme. Para aquellos trabajadores independientes contribuyentes del impuesto unificado deberán presentar la declaración anual consolidada del Régimen Simple de Tributación (SIMPLE).

Sheet Hoja libre
